lending/lending_fUSD_20250131
["ID","MTS","AMOUNT","RATE_DAILY","PERIOD"]
[351025256,1738299035939,-500.0,0.00019178,2]
[351025257,1738299035949,-500.0,0.00019178,2]
[351025258,1738299035960,-804.57,0.00019178,2]
[351025259,1738299035970,-2005.53,0.00019178,2]
[351025260,1738299035980,-2222.06,0.00019178,2]
[351025261,1738299035991,-500.0,0.00019178,2]
[351025262,1738299036000,-500.0,0.00019178,2]
[351025263,1738299036010,-1353.58,0.00019178,2]
[351025264,1738299036020,-536.88,0.00019178,2]
[351025265,1738299036030,-940.85,0.00019178,2]
[351025266,1738299036039,-500.0,0.00019178,2]
[351025267,1738299036049,-514.50327981,0.00019178,2]
[351025268,1738299036059,-1989.46,0.00019178,2]
[351025269,1738299036068,-500.0,0.00019178,2]
[351025270,1738299036078,-1867.28,0.00019178,2]
[351025271,1738299036089,-1356.74,0.00019178,2]
[351025272,1738299036099,-573.65,0.00019178,2]
[351025273,1738299036109,-500.0,0.00019178,2]
[351025274,1738299036119,-502.05,0.00019178,2]
[351025275,1738299036129,-500.0,0.00019178,2]
[351025276,1738299036140,-1527.15,0.00019178,2]
[351025277,1738299036150,-1676.52,0.00019178,2]
[351025278,1738299036160,-500.0,0.00019178,2]
[351025279,1738299036170,-500.0,0.00019178,2]
[351025280,1738299036180,-358.62247197,0.00019178,2]
[351025281,1738299036190,-500.0,0.00019178,2]
[351025282,1738299036200,-500.0,0.00019178,2]
[351025283,1738299036211,-500.0,0.00019178,2]
[351025284,1738299036221,-504.15961479,0.00019178,2]
[351025285,1738299036230,-511.3411309,0.00019178,2]
[351025286,1738299036241,-500.0,0.00019178,2]
[351025287,1738299036251,-737.88,0.00019178,2]
[351025288,1738299036261,-500.0,0.00019178,2]
[351025289,1738299036272,-500.0,0.00019178,2]
[351025290,1738299036282,-500.0,0.00019178,2]
[351025291,1738299036292,-500.0,0.00019178,2]
[351025292,1738299036302,-1684.23,0.00019178,2]
[351025293,1738299036312,-1222.55,0.00019178,2]
[351025294,1738299036321,-730.53,0.00019178,2]
[351025295,1738299036331,-518.03,0.00019178,2]
[351025296,1738299036349,-500.0,0.00019178,2]
[351025297,1738299036360,-529.86351068,0.00019178,2]
[351025298,1738299036370,-692.99,0.00019178,2]
[351025299,1738299036380,-500.0,0.00019178,2]
[351025300,1738299036391,-1142.64,0.00019178,2]
[351025301,1738299036401,-633.75,0.00019178,2]
[351025302,1738299036412,-500.0,0.00019178,2]
[351025303,1738299036423,-656.74,0.00019178,2]
[351025304,1738299036434,-500.0,0.00019178,2]
[351025305,1738299036444,-2459.86,0.00019178,2]
[351025306,1738299036454,-647.5,0.00019178,2]
[351025307,1738299036466,-1999.82,0.00019178,2]
[351025308,1738299036476,-500.0,0.00019178,2]
[351025309,1738299036487,-623.40951071,0.00019178,2]
[351025310,1738299036497,-500.0,0.00019178,2]
[351025311,1738299036508,-500.0,0.00019178,2]
[351025312,1738299036518,-500.0,0.00019178,2]
[351025313,1738299036528,-505.01002523,0.00019178,2]
[351025314,1738299036538,-928.97,0.00019178,2]
[351025315,1738299036548,-386.00006618,0.00019178,2]
[351025316,1738299036558,-1453.39,0.00019178,2]
[351025317,1738299036568,-892.44,0.00019178,2]
[351025318,1738299036577,-3385.53,0.00019178,2]
[351025319,1738299036587,-500.0,0.00019178,2]
[351025320,1738299036597,-1458.17,0.00019178,2]
[351025321,1738299036607,-310.8351313,0.00019178,2]
[351025322,1738299036617,-500.0,0.00019178,2]
[351025323,1738299036627,-500.0,0.00019178,2]
[351025324,1738299036637,-500.0,0.00019178,2]
[351025325,1738299036647,-500.0,0.00019178,2]
[351025326,1738299036657,-1523.01,0.00019178,2]
[351025327,1738299036667,-3968.96,0.00019178,2]
[351025328,1738299036677,-500.0,0.00019178,2]
[351025329,1738299036686,-500.0,0.00019178,2]
[351025330,1738299036696,-694.17,0.00019178,2]
[351025331,1738299036706,-500.0,0.00019178,2]
[351025332,1738299036716,-522.83005828,0.00019178,2]
[351025333,1738299036726,-500.0,0.00019178,2]
[351025334,1738299036736,-517.2033731,0.00019178,2]
[351025335,1738299036746,-1225.55,0.00019178,2]
[351025336,1738299036756,-500.0,0.00019178,2]
[351025337,1738299036766,-2097.37,0.00019178,2]
[351025338,1738299036775,-500.0,0.00019178,2]
[351025339,1738299036785,-500.0,0.00019178,2]
[351025340,1738299036795,-500.0,0.00019178,2]
[351025341,1738299036805,-506.45664,0.00019178,2]
[351025342,1738299036815,-2260.68,0.00019178,2]
[351025343,1738299036825,-3635.39,0.00019178,2]
[351025344,1738299036834,-787.88,0.00019178,2]
[351025345,1738299036849,-500.0,0.00019178,2]
[351025346,1738299036859,-898.28,0.00019178,2]
[351025347,1738299036869,-500.0,0.00019178,2]
[351025348,1738299036879,-500.0,0.00019178,2]
[351025349,1738299036889,-500.0,0.00019178,2]
[351025350,1738299036899,-527.82,0.00019178,2]
[351025351,1738299036909,-934.36,0.00019178,2]
[351025352,1738299036919,-8259.21,0.00019178,2]
[351025353,1738299036930,-838.62,0.00019178,2]
[351025354,1738299036940,-500.0,0.00019178,2]
[351025355,1738299036950,-1609.03,0.00019178,2]
[351025356,1738299036961,-500.0,0.00019178,2]
[351025357,1738299036971,-500.0,0.00019178,2]
[351025358,1738299036981,-500.0,0.00019178,2]
[351025359,1738299036991,-2504.84,0.00019178,2]
[351025360,1738299037000,-500.0,0.00019178,2]
[351025361,1738299037010,-20639.39,0.00019178,2]
[351025362,1738299037020,-1306.2,0.00019178,2]
[351025363,1738299037030,-1660.79,0.00019178,2]
[351025364,1738299037040,-1276.36,0.00019178,2]
[351025365,1738299037050,-500.0,0.00019178,2]
[351025366,1738299037059,-654.97,0.00019178,2]
[351025367,1738299037069,-500.0,0.00019178,2]
[351025368,1738299037079,-500.0,0.00019178,2]
[351025369,1738299037089,-1656.72,0.00019178,2]
[351025370,1738299037098,-3322.43,0.00019178,2]
[351025371,1738299037108,-1140.92,0.00019178,2]
[351025372,1738299037118,-593.32777739,0.00019178,2]
[351025373,1738299037128,-3056.53,0.00019178,2]
[351025374,1738299037138,-208.17149064,0.00019178,2]
[351025375,1738299037148,-1287.59,0.00019178,2]
[351025376,1738299037158,-606.93,0.00019178,2]
[351025377,1738299037168,-1841.23,0.00019178,2]
[351025378,1738299037178,-512.79463834,0.00019178,2]
[351025379,1738299037188,-729.7,0.00019178,2]
[351025380,1738299037198,-500.0,0.00019178,2]
[351025381,1738299037208,-2045.98,0.00019178,2]
[351025382,1738299037223,-2569.69,0.00019178,2]
[351025383,1738299037233,-986.56,0.00019178,2]
[351025384,1738299037244,-802.18,0.00019178,2]
[351025385,1738299037254,-2532.75,0.00019178,2]
[351025386,1738299037264,-500.0,0.00019178,2]
[351025387,1738299037274,-500.0,0.00019178,2]
[351025388,1738299037284,-800.52,0.00019178,2]
[351025389,1738299037294,-500.0,0.00019178,2]
[351025390,1738299037304,-500.0,0.00019178,2]
[351025391,1738299037314,-1319.43,0.00019178,2]
[351025392,1738299037324,-500.0,0.00019178,2]
[351025393,1738299037334,-1820.16,0.00019178,2]
[351025394,1738299037345,-5939.11,0.00019178,2]
[351025395,1738299037363,-500.0,0.00019178,2]
[351025396,1738299037374,-1649.52,0.00019178,2]
[351025397,1738299037384,-509.97066614,0.00019178,2]
[351025398,1738299037396,-610.24,0.00019178,2]
[351025399,1738299037406,-500.0,0.00019178,2]
[351025400,1738299037416,-500.0,0.00019178,2]
[351025401,1738299037426,-9053.87,0.00019178,2]
[351025402,1738299037437,-508.39147471,0.00019178,2]
[351025403,1738299037447,-500.0,0.00019178,2]
[351025404,1738299037457,-1635.62,0.00019178,2]
[351025405,1738299037470,-519.88,0.00019178,2]
[351025406,1738299037480,-1981.06,0.00019178,2]
[351025407,1738299037491,-894.77,0.00019178,2]
[351025408,1738299037501,-1268.14,0.00019178,2]
[351025409,1738299037511,-2058.02,0.00019178,2]
[351025410,1738299037521,-500.0,0.00019178,2]
[351025411,1738299037531,-500.0,0.00019178,2]
[351025412,1738299037541,-859.28,0.00019178,2]
[351025413,1738299037551,-500.0,0.00019178,2]
[351025414,1738299037561,-265.79920564,0.00019178,2]
[351025415,1738299037571,-534.92840281,0.00019178,2]
[351025416,1738299037580,-500.0,0.00019178,2]
[351025417,1738299037590,-500.0,0.00019178,2]
[351025418,1738299037600,-656.15,0.00019178,2]
[351025419,1738299037611,-2585.49,0.00019178,2]
[351025420,1738299037621,-504.83478462,0.00019178,2]
[351025421,1738299037631,-811.38,0.00019178,2]
[351025422,1738299037641,-1690.32,0.00019178,2]
[351025423,1738299037651,-1207.54,0.00019178,2]
[351025424,1738299037661,-500.0,0.00019178,2]
[351025425,1738299037672,-500.0,0.00019178,2]
[351025426,1738299037681,-500.0,0.00019178,2]
[351025427,1738299037692,-3436.52,0.00019178,2]
[351025428,1738299037702,-602.5,0.00019178,2]
[351025429,1738299037714,-9830.2,0.00019178,2]
[351025430,1738299037724,-1232.64,0.00019178,2]
[351025431,1738299037734,-500.0,0.00019178,2]
[351025432,1738299037743,-283.89235098,0.00019178,2]
[351025433,1738299037754,-2036.65,0.00019178,2]
[351025434,1738299037764,-500.0,0.00019178,2]
[351025435,1738299037773,-530.39491308,0.00019178,2]
[351025436,1738299037783,-500.0,0.00019178,2]
[351025437,1738299037793,-792.39,0.00019178,2]
[351025438,1738299037802,-500.0,0.00019178,2]
[351025439,1738299037812,-8464.83,0.00019178,2]
[351025440,1738299037822,-2555.02,0.00019178,2]
[351025441,1738299037832,-501.52,0.00019178,2]
[351025442,1738299037842,-500.0,0.00019178,2]
[351025443,1738299037852,-500.0,0.00019178,2]
[351025444,1738299037862,-2209.11,0.00019178,2]
[351025445,1738299037884,-500.0,0.00019178,2]
[351025446,1738299037894,-500.0,0.00019178,2]
[351025447,1738299037904,-2532.25,0.00019178,2]
[351025448,1738299037915,-596.68562136,0.00019178,2]
[351025449,1738299037925,-500.0,0.00019178,2]
[351025450,1738299037935,-500.0,0.00019178,2]
[351025451,1738299037946,-1026.42,0.00019178,2]
[351025452,1738299037957,-500.0,0.00019178,2]
[351025453,1738299037968,-500.0,0.00019178,2]
[351025454,1738299037978,-2000.51,0.00019178,2]
[351025455,1738299037988,-1017.08,0.00019178,2]
[351025456,1738299037998,-500.0,0.00019178,2]
[351025458,1738299038008,-1195.18,0.00019178,2]
[351025459,1738299038018,-2468.52,0.00019178,2]
[351025460,1738299038029,-3071.37,0.00019178,2]
[351025461,1738299038039,-500.0,0.00019178,2]
[351025462,1738299038050,-926.04,0.00019178,2]
[351025463,1738299038060,-500.0,0.00019178,2]
[351025464,1738299038070,-500.0,0.00019178,2]
[351025465,1738299038081,-509.2806716,0.00019178,2]
[351025466,1738299038091,-1655.56,0.00019178,2]
[351025467,1738299038101,-6728.49,0.00019178,2]
[351025468,1738299038111,-2231.66,0.00019178,2]
[351025469,1738299038121,-500.0,0.00019178,2]
[351025470,1738299038131,-2898.51,0.00019178,2]
[351025471,1738299038145,-1901.75,0.00019178,2]
[351025473,1738299038156,-1942.94,0.00019178,2]
[351025474,1738299038166,-2841.24,0.00019178,2]
[351025475,1738299038176,-500.0,0.00019178,2]
[351025476,1738299038186,-500.0,0.00019178,2]
[351025477,1738299038197,-500.0,0.00019178,2]
[351025478,1738299038207,-1290.78,0.00019178,2]
[351025479,1738299038218,-2687.21,0.00019178,2]
[351025480,1738299038228,-2882.95,0.00019178,2]
[351025481,1738299038238,-5544.58,0.00019178,2]
[351025482,1738299038248,-698.48,0.00019178,2]
[351025483,1738299038258,-2672.17,0.00019178,2]
[351025484,1738299038268,-1788.65,0.00019178,2]
[351025485,1738299038279,-500.0,0.00019178,2]
[351025486,1738299038290,-555.42822271,0.00019178,2]
[351025487,1738299038300,-500.0,0.00019178,2]
[351025488,1738299038310,-500.0,0.00019178,2]
[351025489,1738299038319,-862.3,0.00019178,2]
[351025490,1738299038329,-500.0,0.00019178,2]
[351025491,1738299038339,-500.0,0.00019178,2]
[351025492,1738299038349,-1765.63,0.00019178,2]
[351025493,1738299038361,-4297.89,0.00019178,2]
[351025494,1738299038377,-556.83,0.00019178,2]
[351025495,1738299038387,-936.62,0.00019178,2]
[351025496,1738299038398,-500.0,0.00019178,2]
[351025497,1738299038409,-500.0,0.00019178,2]
[351025498,1738299038419,-507.39084593,0.00019178,2]
[351025499,1738299038429,-796.04,0.00019178,2]
[351025500,1738299038439,-3552.42,0.00019178,2]
[351025501,1738299038450,-500.0,0.00019178,2]
[351025502,1738299038460,-1236.16,0.00019178,2]
[351025503,1738299038473,-1953.65,0.00019178,2]
[351025504,1738299038483,-1618.43,0.00019178,2]
[351025505,1738299038494,-500.0,0.00019178,2]
[351025506,1738299038504,-500.0,0.00019178,2]
[351025507,1738299038515,-1610.62363855,0.00019178,2]
[351025508,1738299038579,-1110.07636145,0.00019178,2]
[351025509,1738299038590,-390.64071584,0.00019178,2]
[351025510,1738299038600,-2074.78,0.00019178,2]
[351025512,1738299038908,-5835.75,0.00019178,2]
[351025513,1738299038918,-985.44,0.00019178,2]
[351025514,1738299038928,-151.45230378,0.00019178,2]
[351025515,1738299038937,-500.0,0.00019178,2]
[351025516,1738299038948,-500.0,0.00019178,2]
[351025517,1738299038958,-4259.32,0.00019178,2]
[351025518,1738299038969,-2034.26,0.00019178,2]
[351025519,1738299038979,-7176.0,0.00019178,2]
[351025520,1738299038988,-11646.11,0.00019178,2]
[351025521,1738299038998,-500.0,0.00019178,2]
[351025522,1738299039007,-665.38,0.00019178,2]
[351025523,1738299039017,-500.0,0.00019178,2]
[351025524,1738299039027,-500.0,0.00019178,2]
[351025525,1738299039036,-1895.83,0.00019178,2]
[351025526,1738299039046,-6077.74,0.00019178,2]
[351025527,1738299039056,-500.0,0.00019178,2]
[351025528,1738299039065,-500.0,0.00019178,2]
[351025529,1738299039074,-234.03808726,0.00019178,2]
[351025530,1738299039084,-500.0,0.00019178,2]
[351025531,1738299039094,-2659.18,0.00019178,2]
[351025532,1738299039103,-5998.91,0.00019178,2]
[351025533,1738299039112,-1856.54,0.00019178,2]
[351025534,1738299039122,-519.74957306,0.00019178,2]
[351025535,1738299039132,-3761.46,0.00019178,2]
[351025536,1738299039143,-3264.01,0.00019178,2]
[351025537,1738299039152,-499.77820536,0.00019178,2]
[351025538,1738299039162,-4160.05,0.00019178,2]
[351025539,1738299039172,-517.42985589,0.00019178,2]
[351025540,1738299039181,-872.28,0.00019178,2]
[351025541,1738299039190,-511.37030246,0.00019178,2]
[351025542,1738299039200,-791.68,0.00019178,2]
[351025543,1738299039210,-500.0,0.00019178,2]
[351025544,1738299039221,-2006.72,0.00019178,2]
[351025545,1738299039231,-520.13,0.00019178,2]
[351025546,1738299039241,-511.99,0.00019178,2]
[351025547,1738299039250,-5557.5,0.00019178,2]
[351025548,1738299039260,-553.15,0.00019178,2]
[351025549,1738299039270,-1673.04,0.00019178,2]
[351025550,1738299039284,-8189.28,0.00019178,2]
[351025551,1738299039294,-1054.76,0.00019178,2]
[351025552,1738299039304,-500.0,0.00019178,2]
[351025553,1738299039314,-3133.62,0.00019178,2]
[351025554,1738299039323,-2170.17,0.00019178,2]
[351025555,1738299039333,-2244.01,0.00019178,2]
[351025556,1738299039343,-1022.97,0.00019178,2]
[351025557,1738299039358,-1188.31,0.00019178,2]
[351025558,1738299039368,-500.0,0.00019178,2]
[351025559,1738299039378,-9625.22,0.00019178,2]
[351025560,1738299039388,-801.21,0.00019178,2]
[351025561,1738299039399,-750.68,0.00019178,2]
[351025562,1738299039409,-4251.21,0.00019178,2]
[351025563,1738299039419,-500.0,0.00019178,2]
[351025564,1738299039430,-508.29658568,0.00019178,2]
[351025565,1738299039439,-510.32993875,0.00019178,2]
[351025566,1738299039449,-4221.66,0.00019178,2]
[351025567,1738299039459,-803.41,0.00019178,2]
[351025568,1738299039470,-500.0,0.00019178,2]
[351025569,1738299039479,-4997.48,0.00019178,2]
[351025570,1738299039489,-500.0,0.00019178,2]
[351025571,1738299039499,-3444.35,0.00019178,2]
[351025572,1738299039509,-500.0,0.00019178,2]
[351025573,1738299039520,-2011.22,0.00019178,2]
[351025574,1738299039530,-500.0,0.00019178,2]
[351025575,1738299039539,-500.0,0.00019178,2]
[351025576,1738299039549,-500.0,0.00019178,2]
[351025577,1738299039558,-2761.89,0.00019178,2]
[351025578,1738299039567,-500.0,0.00019178,2]
[351025579,1738299039577,-1916.93,0.00019178,2]
[351025580,1738299039587,-7271.29,0.00019178,2]
[351025581,1738299039597,-1555.61,0.00019178,2]
[351025582,1738299039606,-315.27088042,0.00019178,2]
[351025583,1738299039615,-500.0,0.00019178,2]
[351025584,1738299039625,-404.78717715,0.00019178,2]
[351025585,1738299039634,-500.0,0.00019178,2]
[351025586,1738299039643,-1883.79,0.00019178,2]
[351025587,1738299039652,-986.83,0.00019178,2]
[351025588,1738299039661,-3141.85176572,0.00019178,2]
[351025589,1738299039675,-184.94823428,0.00019178,2]
[351025590,1738299039684,-1054.93,0.00019178,2]
[351025591,1738299039694,-3881.56,0.00019178,2]
[351025592,1738299039703,-500.0,0.00019178,2]
[351025593,1738299039712,-500.0,0.00019178,2]
[351025594,1738299039723,-533.90563624,0.00019178,2]
[351025595,1738299039732,-1045.33,0.00019178,2]
[351025596,1738299039742,-1902.38,0.00019178,2]
[351025597,1738299039751,-500.0,0.00019178,2]
[351025598,1738299039760,-3681.65,0.00019178,2]
[351025599,1738299039770,-1352.77,0.00019178,2]
[351025600,1738299039779,-500.0,0.00019178,2]
[351025601,1738299039789,-545.82,0.00019178,2]
[351025602,1738299039799,-2487.83,0.00019178,2]
[351025603,1738299039808,-500.0,0.00019178,2]
[351025604,1738299039817,-500.0,0.00019178,2]
[351025605,1738299039826,-626.2,0.00019178,2]
[351025606,1738299039836,-500.0,0.00019178,2]
[351025607,1738299039846,-6399.13,0.00019178,2]
[351025608,1738299039855,-2398.15,0.00019178,2]
[351025609,1738299039864,-500.0,0.00019178,2]
[351025610,1738299039874,-756.54,0.00019178,2]
[351025611,1738299039883,-500.0,0.00019178,2]
[351025612,1738299039893,-500.0,0.00019178,2]
[351025613,1738299039903,-534.46,0.00019178,2]
[351025614,1738299039912,-2864.49,0.00019178,2]
[351025615,1738299039921,-1600.72,0.00019178,2]
[351025616,1738299039931,-2533.4,0.00019178,2]
[351025617,1738299039940,-500.0,0.00019178,2]
[351025618,1738299039950,-1409.05,0.00019178,2]
[351025619,1738299039960,-500.0,0.00019178,2]
[351025620,1738299039973,-510.21751894,0.00019178,2]
[351025621,1738299039982,-1389.68,0.00019178,2]
[351025623,1738299039992,-705.15,0.00019178,2]
[351025624,1738299040001,-500.0,0.00019178,2]
[351025625,1738299040011,-302.35452239,0.00019178,2]
[351025633,1738299041613,-754.73547761,0.00019178,2]
[351025634,1738299041623,-1598.55,0.00019178,2]
[351025635,1738299041635,-1481.14,0.00019178,2]
[351025636,1738299041645,-1346.59,0.00019178,2]
[351025637,1738299041656,-500.0,0.00019178,2]
[351025638,1738299041665,-592.78,0.00019178,2]
[351025639,1738299041675,-7368.92,0.00019178,2]
[351025640,1738299041685,-500.0,0.00019178,2]
[351025641,1738299041696,-500.0,0.00019178,2]
[351025642,1738299041707,-943.62,0.00019178,2]
[351025643,1738299041722,-2272.07,0.00019178,2]
[351025644,1738299041734,-4736.21,0.00019178,2]
[351025645,1738299041746,-500.0,0.00019178,2]
[351025646,1738299041757,-500.0,0.00019178,2]
[351025647,1738299041769,-1442.22,0.00019178,2]
[351025648,1738299041781,-714.12,0.00019178,2]
[351025649,1738299041795,-500.0,0.00019178,2]
[351025650,1738299041807,-663.88,0.00019178,2]
[351025651,1738299041819,-150.52,0.00019178,2]
[351025652,1738299041831,-379.51,0.00019178,2]
[351025653,1738299041842,-1671.8224671,0.00019179,2]
[351025654,1738299041860,-2469.4034802,0.00019179,2]
[351025655,1738299041871,-163437.85837496,0.00019182,3]
[351025656,1738299041883,-580.69612597,0.00019185,3]
[351025657,1738299041894,-2991.09931899,0.00019185,3]
[351025658,1738299041905,-999.70856941,0.00019185,3]
[351025659,1738299041915,-11913.76704624,0.00019185,3]
[351025660,1738299041927,-200.0,0.00019189,3]
[351025661,1738299041937,-580.69612597,0.00019189,3]
[351025662,1738299041948,-11905.07124661,0.00019196,3]
[351025663,1738299041958,-2991.09931899,0.00019197,3]
[351025664,1738299041975,-622.99799174,0.00019197,3]
[351025665,1738299041987,-615967.11608107,0.00019198,3]
[351025666,1738299042000,-1237.5295889,0.00019202,2]
[351025667,1738299042012,-159.98619382,0.00019215,2]
[351025668,1738299042023,-248.10957872,0.00019215,2]
[351025669,1738299042034,-217.8807576,0.00019247,2]
[351025670,1738299042045,-47331.30344746,0.00019252,2]
[351025671,1738299042056,-293.06,0.00019257,2]
[351025672,1738299042066,-2944.54037404,0.00019261,2]
[351025673,1738299042077,-500.0,0.00019261,2]
[351025674,1738299042087,-500.0,0.00019261,2]
[351025675,1738299042098,-500.0,0.00019261,2]
[351025676,1738299042108,-500.0,0.00019261,2]
[351025677,1738299042117,-500.0,0.00019261,2]
[351025678,1738299042127,-500.0,0.00019261,2]
[351025679,1738299042138,-500.0,0.00019261,2]
[351025680,1738299042148,-500.0,0.00019261,2]
[351025681,1738299042158,-500.0,0.00019261,2]
[351025682,1738299042168,-500.0,0.00019261,2]
[351025683,1738299042178,-500.0,0.00019261,2]
[351025684,1738299042188,-500.0,0.00019261,2]
[351025685,1738299042200,-500.0,0.00019261,2]
[351025686,1738299042209,-500.0,0.00019261,2]
[351025687,1738299042225,-500.0,0.00019261,2]
[351025688,1738299042235,-500.0,0.00019261,2]
[351025689,1738299042245,-500.0,0.00019261,2]
[351025690,1738299042256,-500.0,0.00019261,2]
[351025691,1738299042266,-500.0,0.00019261,2]
[351025692,1738299042276,-500.0,0.00019261,2]
[351025693,1738299042287,-500.0,0.00019261,2]
[351025694,1738299042297,-500.0,0.00019261,2]
[351025695,1738299042308,-500.0,0.00019261,2]
[351025696,1738299042318,-500.0,0.00019261,2]
[351025697,1738299042328,-500.0,0.00019261,2]
[351025698,1738299042337,-500.0,0.00019261,2]
[351025699,1738299042348,-500.0,0.00019261,2]
[351025700,1738299042362,-500.0,0.00019261,2]
[351025701,1738299042376,-500.0,0.00019261,2]
[351025702,1738299042387,-500.0,0.00019261,2]
[351025703,1738299042397,-500.0,0.00019261,2]
[351025704,1738299042408,-500.0,0.00019261,2]
[351025705,1738299042418,-500.0,0.00019261,2]
[351025706,1738299042430,-500.0,0.00019261,2]
[351025707,1738299042440,-500.0,0.00019261,2]
[351025708,1738299042449,-500.0,0.00019261,2]
[351025709,1738299042459,-500.0,0.00019261,2]
[351025710,1738299042473,-500.0,0.00019261,2]
[351025711,1738299042483,-500.0,0.00019261,2]
[351025712,1738299042493,-500.0,0.00019261,2]
[351025713,1738299042504,-500.0,0.00019261,2]
[351025714,1738299042514,-500.0,0.00019261,2]
[351025715,1738299042524,-500.0,0.00019261,2]
[351025716,1738299042534,-500.0,0.00019261,2]
[351025717,1738299042543,-500.0,0.00019261,2]
[351025718,1738299042553,-500.0,0.00019261,2]
[351025719,1738299042563,-500.0,0.00019261,2]
[351025720,1738299042573,-500.0,0.00019261,2]
[351025721,1738299042583,-500.0,0.00019261,2]
[351025722,1738299042592,-500.0,0.00019261,2]
[351025723,1738299042602,-500.0,0.00019261,2]
[351025724,1738299042612,-500.0,0.00019261,2]
[351025725,1738299042622,-500.0,0.00019261,2]
[351025726,1738299042632,-500.0,0.00019261,2]
[351025727,1738299042642,-500.0,0.00019261,2]
[351025728,1738299042651,-500.0,0.00019261,2]
[351025729,1738299042661,-500.0,0.00019261,2]
[351025730,1738299042670,-728.0,0.00019261,2]
[351025731,1738299042680,-500.0,0.00019261,2]
[351025732,1738299042689,-500.0,0.00019261,2]
[351025733,1738299042699,-500.0,0.00019261,2]
[351025734,1738299042708,-500.0,0.00019261,2]
[351025735,1738299042719,-500.0,0.00019261,2]
[351025736,1738299042729,-500.0,0.00019261,2]
[351025737,1738299042738,-500.0,0.00019261,2]
[351025738,1738299042749,-500.0,0.00019261,2]
[351025739,1738299042758,-500.0,0.00019261,2]
[351025740,1738299042768,-500.0,0.00019261,2]
[351025741,1738299042778,-500.0,0.00019261,2]
[351025742,1738299042788,-500.0,0.00019261,2]
[351025743,1738299042798,-500.0,0.00019261,2]
[351025744,1738299042809,-500.0,0.00019261,2]
[351025745,1738299042818,-500.0,0.00019261,2]
[351025746,1738299042828,-500.0,0.00019261,2]
[351025747,1738299042842,-500.0,0.00019261,2]
[351025748,1738299042852,-500.0,0.00019261,2]
[351025749,1738299042861,-500.0,0.00019261,2]
[351025750,1738299042871,-500.0,0.00019261,2]
[351025751,1738299042881,-500.0,0.00019261,2]
[351025752,1738299042891,-500.0,0.00019261,2]
[351025753,1738299042913,-500.0,0.00019261,2]
[351025754,1738299042924,-500.0,0.00019261,2]
[351025755,1738299042934,-500.0,0.00019261,2]
[351025756,1738299042943,-500.0,0.00019261,2]
[351025757,1738299042954,-500.0,0.00019261,2]
[351025758,1738299042965,-500.0,0.00019261,2]
[351025759,1738299042977,-500.0,0.00019261,2]
[351025761,1738299042986,-500.0,0.00019261,2]
[351025763,1738299042996,-500.0,0.00019261,2]
[351025765,1738299043006,-500.0,0.00019261,2]
[351025767,1738299043015,-500.0,0.00019261,2]
[351025769,1738299043025,-500.0,0.00019261,2]
[351025770,1738299043035,-500.0,0.00019261,2]
[351025772,1738299043046,-500.0,0.00019261,2]